[Event "Early-Titled-Tuesday-Blitz-September-05-2023"]
[Site "Chess.com"]
[Date "2023.09.05"]
[Round "10"]
[White "CSB7"]
[Black "GeorgiosSouleidis"]
[Result "1-0"]
[WhiteElo "2709"]
[BlackElo "2549"]
[TimeControl "180+1"]
[EndTime "9:52:49 PDT"]
[Termination "CSB7 won on time"]

1. d4 {[%clk 0:03:00.9]} 1... Nf6 {[%clk 0:02:59.6]} 2. c4 {[%clk 0:03:01.2]}
2... g6 {[%clk 0:03:00]} 3. Nc3 {[%clk 0:03:01.6]} 3... Bg7 {[%clk 0:03:00.6]}
4. e4 {[%clk 0:03:00.5]} 4... d6 {[%clk 0:03:01.1]} 5. Nf3 {[%clk 0:03:00.9]}
5... O-O {[%clk 0:03:01.8]} 6. Be2 {[%clk 0:03:01.6]} 6... e5 {[%clk 0:03:02.2]}
7. d5 {[%clk 0:03:02.3]} 7... a5 {[%clk 0:03:02]} 8. Bg5 {[%clk 0:03:02.2]} 8...
h6 {[%clk 0:03:02.4]} 9. Be3 {[%clk 0:03:02.4]} 9... Ng4 {[%clk 0:03:02.6]} 10.
Bd2 {[%clk 0:03:02]} 10... f5 {[%clk 0:03:03]} 11. h3 {[%clk 0:03:02.7]} 11...
Nf6 {[%clk 0:03:03]} 12. exf5 {[%clk 0:03:02.3]} 12... gxf5 {[%clk 0:03:03.1]}
13. Qc1 {[%clk 0:03:03]} 13... f4 {[%clk 0:02:59.6]} 14. g3 {[%clk 0:03:02.3]}
14... e4 {[%clk 0:02:54.9]} 15. Nh4 {[%clk 0:03:01.6]} 15... e3 {[%clk 0:02:54]}
16. fxe3 {[%clk 0:03:02.5]} 16... fxg3 {[%clk 0:02:54.2]} 17. Ng6 {[%clk
0:03:03]} 17... Re8 {[%clk 0:02:54.6]} 18. Rg1 {[%clk 0:03:02.1]} 18... Bf5
{[%clk 0:02:38.6]} 19. Rxg3 {[%clk 0:02:50.9]} 19... Na6 {[%clk 0:01:51.3]} 20.
e4 {[%clk 0:02:37.9]} 20... Nxe4 {[%clk 0:01:40.1]} 21. Nxe4 {[%clk 0:02:35.3]}
21... Rxe4 {[%clk 0:01:40.7]} 22. Bc3 {[%clk 0:01:52.7]} 22... Qe8 {[%clk
0:01:15.1]} 23. Nf4 {[%clk 0:01:42.6]} 23... Re7 {[%clk 0:00:39.3]} 24. Ne6
{[%clk 0:01:42.5]} 24... Bxe6 {[%clk 0:00:33.4]} 25. Qxh6 {[%clk 0:01:23]} 25...
Bg4 {[%clk 0:00:08.4]} 26. Rxg4 {[%clk 0:01:20.3]} 26... Rxe2+ {[%clk
0:00:08.4]} 27. Kd1 {[%clk 0:01:21]} 27... Re1+ {[%clk 0:00:04.8]} 28. Bxe1
{[%clk 0:01:18.6]} 1-0

[Event "Early-Titled-Tuesday-Blitz-September-05-2023"]
[Site "Chess.com"]
[Date "2023.09.05"]
[Round "10"]
[White "Lady_Nika"]
[Black "Khromkin"]
[Result "1-0"]
[WhiteElo "2467"]
[BlackElo "2390"]
[TimeControl "180+1"]
[EndTime "9:52:50 PDT"]
[Termination "Lady_Nika won on time"]

1. e4 {[%clk 0:02:58.2]} 1... c5 {[%clk 0:02:59.1]} 2. Nc3 {[%clk 0:02:57.8]}
2... g6 {[%clk 0:02:58.3]} 3. g3 {[%clk 0:02:58]} 3... Bg7 {[%clk 0:02:58.5]} 4.
Bg2 {[%clk 0:02:58.9]} 4... e6 {[%clk 0:02:59.2]} 5. d3 {[%clk 0:02:59.2]} 5...
Ne7 {[%clk 0:02:59.7]} 6. f4 {[%clk 0:02:59.5]} 6... Nbc6 {[%clk 0:02:59.6]} 7.
Nf3 {[%clk 0:02:59.3]} 7... O-O {[%clk 0:02:57.7]} 8. O-O {[%clk 0:02:58.5]}
8... Rb8 {[%clk 0:02:58.3]} 9. Rb1 {[%clk 0:02:57.2]} 9... b5 {[%clk 0:02:58.7]}
10. Ne2 {[%clk 0:02:54.6]} 10... d5 {[%clk 0:02:55.5]} 11. e5 {[%clk 0:02:54.5]}
11... b4 {[%clk 0:02:53.5]} 12. Be3 {[%clk 0:02:53.7]} 12... Qa5 {[%clk
0:02:49.3]} 13. Nc1 {[%clk 0:02:53.2]} 13... Nf5 {[%clk 0:02:44.6]} 14. Bf2
{[%clk 0:02:51.9]} 14... Nfd4 {[%clk 0:02:38.2]} 15. Nxd4 {[%clk 0:02:45.4]}
15... Nxd4 {[%clk 0:02:37]} 16. Nb3 {[%clk 0:02:45.5]} 16... Nxb3 {[%clk
0:02:31.7]} 17. axb3 {[%clk 0:02:45.2]} 17... Qc7 {[%clk 0:02:21.6]} 18. Ra1
{[%clk 0:02:35.7]} 18... a5 {[%clk 0:02:21.2]} 19. h4 {[%clk 0:02:32.9]} 19...
Ba6 {[%clk 0:02:15.8]} 20. Re1 {[%clk 0:02:26.2]} 20... Rfd8 {[%clk 0:02:08.2]}
21. h5 {[%clk 0:02:26]} 21... c4 {[%clk 0:02:08.2]} 22. bxc4 {[%clk 0:02:25.1]}
22... dxc4 {[%clk 0:02:07.9]} 23. d4 {[%clk 0:02:25.6]} 23... c3 {[%clk
0:02:06.9]} 24. b3 {[%clk 0:02:24.4]} 24... Bb7 {[%clk 0:01:58.3]} 25. Bxb7
{[%clk 0:02:23.9]} 25... Rxb7 {[%clk 0:01:57.2]} 26. hxg6 {[%clk 0:02:23.8]}
26... hxg6 {[%clk 0:01:56.3]} 27. Qf3 {[%clk 0:02:23.6]} 27... Rb5 {[%clk
0:01:56.2]} 28. Kg2 {[%clk 0:02:20.2]} 28... Rbd5 {[%clk 0:01:07.8]} 29. Rh1
{[%clk 0:02:12.2]} 29... Qc6 {[%clk 0:01:02.8]} 30. g4 {[%clk 0:02:08.9]} 30...
Qa8 {[%clk 0:00:52.2]} 31. Kg3 {[%clk 0:02:05.8]} 31... Qa6 {[%clk 0:00:41.4]}
32. f5 {[%clk 0:02:03]} 32... exf5 {[%clk 0:00:36.3]} 33. gxf5 {[%clk 0:02:03]}
33... Rxd4 {[%clk 0:00:15]} 34. Bxd4 {[%clk 0:02:00.8]} 34... Rxd4 {[%clk
0:00:15.3]} 35. f6 {[%clk 0:02:01.1]} 35... Bf8 {[%clk 0:00:14.1]} 36. Rh4
{[%clk 0:01:58.2]} 36... Rd2 {[%clk 0:00:13]} 37. Rah1 {[%clk 0:01:57]} 37...
Bg7 {[%clk 0:00:05.2]} 38. fxg7 {[%clk 0:01:49.5]} 1-0

[Event "Early-Titled-Tuesday-Blitz-September-05-2023"]
[Site "Chess.com"]
[Date "2023.09.05"]
[Round "10"]
[White "hakanazeri2"]
[Black "PetrolulSah"]
[Result "1-0"]
[WhiteElo "2574"]
[BlackElo "2165"]
[TimeControl "180+1"]
[EndTime "9:53:01 PDT"]
[Termination "hakanazeri2 won by resignation"]

1. d4 {[%clk 0:02:54.2]} 1... Nf6 {[%clk 0:02:56.7]} 2. Nf3 {[%clk 0:02:55.1]}
2... d5 {[%clk 0:02:52.4]} 3. c4 {[%clk 0:02:56]} 3... c6 {[%clk 0:02:50]} 4.
Nc3 {[%clk 0:02:50.2]} 4... dxc4 {[%clk 0:02:48.4]} 5. a4 {[%clk 0:02:47.1]}
5... Bf5 {[%clk 0:02:46.9]} 6. e3 {[%clk 0:02:45.6]} 6... e6 {[%clk 0:02:36.2]}
7. Bxc4 {[%clk 0:02:43.5]} 7... Bb4 {[%clk 0:02:36.1]} 8. O-O {[%clk 0:02:41.7]}
8... O-O {[%clk 0:02:36.1]} 9. Bd3 {[%clk 0:02:33.4]} 9... Nbd7 {[%clk 0:02:34]}
10. e4 {[%clk 0:02:28.5]} 10... Bg4 {[%clk 0:02:27.5]} 11. h3 {[%clk 0:02:14.8]}
11... Bh5 {[%clk 0:02:27]} 12. e5 {[%clk 0:02:06.9]} 12... Nd5 {[%clk
0:02:22.4]} 13. Nxd5 {[%clk 0:02:02.5]} 13... cxd5 {[%clk 0:02:21.7]} 14. b3
{[%clk 0:01:47.6]} 14... Bc3 {[%clk 0:02:12.8]} 15. Ra2 {[%clk 0:01:44.5]} 15...
Bxf3 {[%clk 0:02:12.2]} 16. Qxf3 {[%clk 0:01:40.1]} 16... Bxd4 {[%clk
0:02:12.1]} 17. Bxh7+ {[%clk 0:01:38.8]} 17... Kxh7 {[%clk 0:02:10.4]} 18. Qd3+
{[%clk 0:01:35.2]} 18... f5 {[%clk 0:02:03.5]} 19. Qxd4 {[%clk 0:01:36.1]} 19...
Qc7 {[%clk 0:01:54.2]} 20. Ba3 {[%clk 0:01:28.4]} 20... Rh8 {[%clk 0:01:47.5]}
21. Bd6 {[%clk 0:01:26.4]} 21... Qb6 {[%clk 0:01:47.7]} 22. Qh4+ {[%clk
0:01:16.3]} 22... Kg8 {[%clk 0:01:45]} 23. Qe7 {[%clk 0:01:16.4]} 23... Qd8
{[%clk 0:01:39.6]} 24. Qxe6+ {[%clk 0:01:14.5]} 24... Kh7 {[%clk 0:01:35.5]} 25.
Qxf5+ {[%clk 0:01:10.9]} 25... Kg8 {[%clk 0:01:35.9]} 26. Qe6+ {[%clk
0:01:07.3]} 26... Kh7 {[%clk 0:01:34.8]} 27. Qxd5 {[%clk 0:01:06.8]} 27... Nb6
{[%clk 0:01:33.3]} 28. Qxb7 {[%clk 0:01:01.6]} 28... Qg5 {[%clk 0:01:15.6]} 29.
Qe4+ {[%clk 0:00:55.2]} 29... Kg8 {[%clk 0:01:13.9]} 30. a5 {[%clk 0:00:52.6]}
30... Rxh3 {[%clk 0:01:11]} 31. axb6 {[%clk 0:00:50.3]} 31... Re8 {[%clk
0:01:06.6]} 32. bxa7 {[%clk 0:00:42.9]} 32... Qh5 {[%clk 0:00:55.2]} 33. gxh3
{[%clk 0:00:37.7]} 33... Qg5+ {[%clk 0:00:55.6]} 34. Kh1 {[%clk 0:00:35.4]} 1-0

[Event "Early-Titled-Tuesday-Blitz-September-05-2023"]
[Site "Chess.com"]
[Date "2023.09.05"]
[Round "10"]
[White "Hikaru"]
[Black "Mops_2004"]
[Result "1-0"]
[WhiteElo "3243"]
[BlackElo "2827"]
[TimeControl "180+1"]
[EndTime "9:53:14 PDT"]
[Termination "Hikaru won by resignation"]

1. Nf3 {[%clk 0:03:00.9]} 1... d5 {[%clk 0:02:58.7]} 2. b3 {[%clk 0:03:00.9]}
2... Nf6 {[%clk 0:02:58.5]} 3. Bb2 {[%clk 0:03:00]} 3... Bf5 {[%clk 0:02:58.9]}
4. Ba3 {[%clk 0:02:59.6]} 4... g6 {[%clk 0:02:38.6]} 5. e3 {[%clk 0:02:59]} 5...
Bg7 {[%clk 0:02:38.3]} 6. Bb2 {[%clk 0:02:59.6]} 6... O-O {[%clk 0:02:37.7]} 7.
d4 {[%clk 0:02:59.8]} 7... c5 {[%clk 0:02:36.8]} 8. dxc5 {[%clk 0:03:00.2]} 8...
Qa5+ {[%clk 0:02:33.6]} 9. Nbd2 {[%clk 0:03:00.4]} 9... Ne4 {[%clk 0:02:28.5]}
10. Bxg7 {[%clk 0:03:00.1]} 10... Kxg7 {[%clk 0:02:29.4]} 11. a3 {[%clk
0:02:53.3]} 11... Qxc5 {[%clk 0:02:10.2]} 12. Nd4 {[%clk 0:02:52.5]} 12... Bd7
{[%clk 0:02:01.9]} 13. c4 {[%clk 0:02:50.7]} 13... e5 {[%clk 0:01:36.7]} 14.
N4f3 {[%clk 0:02:31.4]} 14... Nxd2 {[%clk 0:00:59.4]} 15. Nxd2 {[%clk
0:02:31.6]} 15... Be6 {[%clk 0:00:53.8]} 16. b4 {[%clk 0:02:29.6]} 16... Qe7
{[%clk 0:00:53.8]} 17. c5 {[%clk 0:02:22.5]} 17... a5 {[%clk 0:00:51.3]} 18. Rc1
{[%clk 0:02:20]} 18... axb4 {[%clk 0:00:51.1]} 19. axb4 {[%clk 0:02:20.9]} 19...
d4 {[%clk 0:00:40.1]} 20. e4 {[%clk 0:02:13.7]} 20... Nc6 {[%clk 0:00:35.3]} 21.
b5 {[%clk 0:02:14]} 21... Na5 {[%clk 0:00:28.6]} 22. Bd3 {[%clk 0:02:07.2]}
22... Rfc8 {[%clk 0:00:28.5]} 23. Qc2 {[%clk 0:02:07.8]} 23... Rc7 {[%clk
0:00:23.3]} 24. O-O {[%clk 0:02:07.2]} 24... Rac8 {[%clk 0:00:23.1]} 25. Qa4
{[%clk 0:02:05.8]} 25... b6 {[%clk 0:00:08.9]} 26. c6 {[%clk 0:02:05.9]} 26...
f5 {[%clk 0:00:08.6]} 27. Rfe1 {[%clk 0:02:02.3]} 27... f4 {[%clk 0:00:08.3]}
28. Nf3 {[%clk 0:02:01]} 28... Bg4 {[%clk 0:00:08.7]} 29. Nd2 {[%clk 0:02:00.7]}
29... g5 {[%clk 0:00:08.7]} 30. Ra1 {[%clk 0:01:58.5]} 30... h5 {[%clk
0:00:08.1]} 31. Qc2 {[%clk 0:01:58.6]} 31... Be6 {[%clk 0:00:08.1]} 32. Nc4
{[%clk 0:01:47.3]} 32... Nxc4 {[%clk 0:00:04.6]} 33. Bxc4 {[%clk 0:01:48.2]}
33... g4 {[%clk 0:00:03.3]} 34. Bxe6 {[%clk 0:01:46.7]} 34... Qxe6 {[%clk
0:00:04.2]} 35. Qa2 {[%clk 0:01:44.6]} 35... Qxa2 {[%clk 0:00:03.6]} 36. Rxa2
{[%clk 0:01:44.8]} 36... Kf6 {[%clk 0:00:03.6]} 37. Ra6 {[%clk 0:01:44.8]} 37...
Rb8 {[%clk 0:00:04.1]} 38. Rc1 {[%clk 0:01:45.2]} 38... Ke6 {[%clk 0:00:04.1]}
39. Kf1 {[%clk 0:01:45.9]} 39... Kd6 {[%clk 0:00:01.3]} 40. Ke2 {[%clk
0:01:46.4]} 40... h4 {[%clk 0:00:01.2]} 41. Kd3 {[%clk 0:01:44.9]} 41... Rf7
{[%clk 0:00:01.9]} 42. Rca1 {[%clk 0:01:43.7]} 42... f3 {[%clk 0:00:02.7]} 43.
g3 {[%clk 0:01:44.2]} 43... hxg3 {[%clk 0:00:02.7]} 44. hxg3 {[%clk 0:01:45.1]}
44... Rg7 {[%clk 0:00:03.2]} 45. Ra7 {[%clk 0:01:45.3]} 45... Rbg8 {[%clk
0:00:02.4]} 46. Kc4 {[%clk 0:01:43]} 46... Rxa7 {[%clk 0:00:01.6]} 47. Rxa7
{[%clk 0:01:42.8]} 47... Rh8 {[%clk 0:00:02.5]} 48. Rd7+ {[%clk 0:01:43]} 48...
Ke6 {[%clk 0:00:02.9]} 49. Rd5 {[%clk 0:01:43.7]} 49... Rh2 {[%clk 0:00:02.8]}
50. c7 {[%clk 0:01:42.4]} 50... Rxf2 {[%clk 0:00:03.7]} 51. c8=Q+ {[%clk
0:01:42.7]} 1-0

[Event "Early-Titled-Tuesday-Blitz-September-05-2023"]
[Site "Chess.com"]
[Date "2023.09.05"]
[Round "10"]
[White "DopplerCharlotteDeWitte"]
[Black "TatjanaVasilevich"]
[Result "0-1"]
[WhiteElo "2701"]
[BlackElo "2611"]
[TimeControl "180+1"]
[EndTime "9:53:32 PDT"]
[Termination "TatjanaVasilevich won on time"]

1. e4 {[%clk 0:03:00.9]} 1... c5 {[%clk 0:03:00]} 2. b4 {[%clk 0:03:00.5]} 2...
cxb4 {[%clk 0:02:57]} 3. a3 {[%clk 0:03:00.3]} 3... bxa3 {[%clk 0:02:55.3]} 4.
d4 {[%clk 0:02:59.6]} 4... g6 {[%clk 0:02:54.6]} 5. Nxa3 {[%clk 0:02:58.3]} 5...
Bg7 {[%clk 0:02:55.3]} 6. c3 {[%clk 0:02:58.7]} 6... d6 {[%clk 0:02:55.7]} 7. f4
{[%clk 0:02:57.5]} 7... Nf6 {[%clk 0:02:55.7]} 8. Bd3 {[%clk 0:02:57.1]} 8...
O-O {[%clk 0:02:55.7]} 9. Nf3 {[%clk 0:02:57.3]} 9... e5 {[%clk 0:02:55.5]} 10.
fxe5 {[%clk 0:02:48.9]} 10... dxe5 {[%clk 0:02:55]} 11. Nxe5 {[%clk 0:02:40.7]}
11... Nbd7 {[%clk 0:02:47.9]} 12. Nxd7 {[%clk 0:02:40.1]} 12... Bxd7 {[%clk
0:02:47.1]} 13. O-O {[%clk 0:02:38.7]} 13... Qc7 {[%clk 0:02:46.6]} 14. Bd2
{[%clk 0:02:27.7]} 14... Rfe8 {[%clk 0:02:45.8]} 15. Qf3 {[%clk 0:02:23.3]}
15... Bg4 {[%clk 0:02:42.2]} 16. Nb5 {[%clk 0:02:12.6]} 16... Qd7 {[%clk
0:02:34.5]} 17. Qf4 {[%clk 0:02:03.2]} 17... a6 {[%clk 0:02:16.4]} 18. Nd6
{[%clk 0:01:32.3]} 18... Re7 {[%clk 0:02:06]} 19. h3 {[%clk 0:01:24.6]} 19...
Be6 {[%clk 0:02:03.7]} 20. d5 {[%clk 0:01:17.7]} 20... Bxd5 {[%clk 0:02:03]} 21.
exd5 {[%clk 0:01:16.6]} 21... Nxd5 {[%clk 0:02:03]} 22. Qf3 {[%clk 0:00:50.8]}
22... Qxd6 {[%clk 0:02:02.5]} 23. Rad1 {[%clk 0:00:46.6]} 23... Nxc3 {[%clk
0:01:53.9]} 24. Bxc3 {[%clk 0:00:43.7]} 24... Bxc3 {[%clk 0:01:54.6]} 25. Kh1
{[%clk 0:00:42.3]} 25... Qc6 {[%clk 0:01:45.4]} 26. Qg3 {[%clk 0:00:27.5]} 26...
Bg7 {[%clk 0:01:43.1]} 27. Rc1 {[%clk 0:00:23.7]} 27... Qd7 {[%clk 0:01:41.2]}
28. Bc4 {[%clk 0:00:23.3]} 28... b5 {[%clk 0:01:40.5]} 29. Ba2 {[%clk
0:00:23.2]} 29... Rd8 {[%clk 0:01:39.8]} 30. Qg5 {[%clk 0:00:14.8]} 30... a5
{[%clk 0:01:31.7]} 31. Rc5 {[%clk 0:00:11.6]} 31... Qe8 {[%clk 0:01:13.7]} 32.
Rxb5 {[%clk 0:00:10.2]} 32... h6 {[%clk 0:01:12.3]} 33. Qc5 {[%clk 0:00:05.8]}
33... Rc8 {[%clk 0:01:09.8]} 34. Qd5 {[%clk 0:00:02.6]} 34... Rd8 {[%clk
0:01:08.4]} 35. Qc5 {[%clk 0:00:02.4]} 35... Bd4 {[%clk 0:01:08.9]} 36. Qc4
{[%clk 0:00:02]} 36... Rc8 {[%clk 0:01:09.4]} 37. Qd3 {[%clk 0:00:01.2]} 37...
Bg7 {[%clk 0:01:09.6]} 38. Rd5 {[%clk 0:00:01.1]} 38... Re6 {[%clk 0:01:08.7]}
0-1

[Event "Early-Titled-Tuesday-Blitz-September-05-2023"]
[Site "Chess.com"]
[Date "2023.09.05"]
[Round "10"]
[White "Orest_Vovk"]
[Black "Cambek64"]
[Result "1-0"]
[WhiteElo "2616"]
[BlackElo "2505"]
[TimeControl "180+1"]
[EndTime "9:53:34 PDT"]
[Termination "Orest_Vovk won by resignation"]

1. e4 {[%clk 0:02:55]} 1... c5 {[%clk 0:02:59.4]} 2. Nf3 {[%clk 0:02:53.9]} 2...
d6 {[%clk 0:03:00]} 3. Bb5+ {[%clk 0:02:47]} 3... Bd7 {[%clk 0:02:55.8]} 4.
Bxd7+ {[%clk 0:02:47]} 4... Qxd7 {[%clk 0:02:56]} 5. O-O {[%clk 0:02:47.9]} 5...
Nc6 {[%clk 0:02:56]} 6. c3 {[%clk 0:02:47.7]} 6... e6 {[%clk 0:02:53.5]} 7. d4
{[%clk 0:02:46.4]} 7... cxd4 {[%clk 0:02:53.9]} 8. cxd4 {[%clk 0:02:47.3]} 8...
Nf6 {[%clk 0:02:51.7]} 9. Nc3 {[%clk 0:02:47.5]} 9... d5 {[%clk 0:02:51.7]} 10.
e5 {[%clk 0:02:45.9]} 10... Ne4 {[%clk 0:02:52]} 11. Nxe4 {[%clk 0:02:43.9]}
11... dxe4 {[%clk 0:02:49.8]} 12. Ng5 {[%clk 0:02:44.8]} 12... Qxd4 {[%clk
0:02:48.5]} 13. Qxd4 {[%clk 0:02:44.3]} 13... Nxd4 {[%clk 0:02:48.7]} 14. Nxe4
{[%clk 0:02:45.2]} 14... Be7 {[%clk 0:02:39.9]} 15. Be3 {[%clk 0:02:36.9]} 15...
Nc6 {[%clk 0:02:21]} 16. f4 {[%clk 0:02:33.6]} 16... O-O-O {[%clk 0:02:07.6]}
17. Rfd1 {[%clk 0:02:30]} 17... Rxd1+ {[%clk 0:02:06]} 18. Rxd1 {[%clk
0:02:29.1]} 18... Rd8 {[%clk 0:02:05.8]} 19. Rxd8+ {[%clk 0:02:27.5]} 19... Kxd8
{[%clk 0:02:05.8]} 20. a3 {[%clk 0:02:24.7]} 20... b6 {[%clk 0:02:01.8]} 21. b4
{[%clk 0:02:21.6]} 21... Kd7 {[%clk 0:02:01.7]} 22. Kf2 {[%clk 0:02:20.6]} 22...
Kc7 {[%clk 0:01:51.2]} 23. Ke2 {[%clk 0:02:20.1]} 23... Kd7 {[%clk 0:01:45.7]}
24. Kd3 {[%clk 0:02:19.9]} 24... Kc7 {[%clk 0:01:45.2]} 25. Kc4 {[%clk
0:02:18.8]} 25... Nb8 {[%clk 0:01:42.6]} 26. Kb5 {[%clk 0:02:06.8]} 26... a6+
{[%clk 0:01:39.8]} 27. Kc4 {[%clk 0:02:06.1]} 27... Kc6 {[%clk 0:01:39.8]} 28.
g4 {[%clk 0:01:58.7]} 28... b5+ {[%clk 0:01:37.4]} 29. Kd3 {[%clk 0:01:58.5]}
29... Nd7 {[%clk 0:01:38]} 30. h3 {[%clk 0:01:51]} 30... f6 {[%clk 0:01:37.8]}
31. exf6 {[%clk 0:01:50.1]} 31... Nxf6 {[%clk 0:01:37.6]} 32. Nxf6 {[%clk
0:01:46.8]} 32... Bxf6 {[%clk 0:01:36.2]} 33. Bd4 {[%clk 0:01:44.8]} 33... Bxd4
{[%clk 0:01:26.8]} 34. Kxd4 {[%clk 0:01:44.6]} 34... Kd6 {[%clk 0:01:27.5]} 35.
Ke4 {[%clk 0:01:25.8]} 35... Kd7 {[%clk 0:01:25.7]} 36. Ke5 {[%clk 0:01:25.3]}
36... Ke7 {[%clk 0:01:25.3]} 37. h4 {[%clk 0:01:21.4]} 37... h6 {[%clk
0:01:16.6]} 38. g5 {[%clk 0:01:05.9]} 38... Kf7 {[%clk 0:01:04.9]} 39. Kd6
{[%clk 0:00:50.4]} 39... hxg5 {[%clk 0:00:56.8]} 40. hxg5 {[%clk 0:00:34.4]}
40... g6 {[%clk 0:00:52.9]} 41. Kd7 {[%clk 0:00:34.3]} 1-0

[Event "Early-Titled-Tuesday-Blitz-September-05-2023"]
[Site "Chess.com"]
[Date "2023.09.05"]
[Round "10"]
[White "DenLaz"]
[Black "Anton_Demchenko"]
[Result "0-1"]
[WhiteElo "3065"]
[BlackElo "2966"]
[TimeControl "180+1"]
[EndTime "9:53:43 PDT"]
[Termination "Anton_Demchenko won by resignation"]

1. d4 {[%clk 0:03:00.9]} 1... Nf6 {[%clk 0:03:00]} 2. c4 {[%clk 0:03:01.5]} 2...
d6 {[%clk 0:03:00.7]} 3. Nf3 {[%clk 0:03:01.6]} 3... Nc6 {[%clk 0:03:00.5]} 4.
Nc3 {[%clk 0:02:56.5]} 4... e5 {[%clk 0:03:00]} 5. g3 {[%clk 0:02:53.9]} 5...
Be7 {[%clk 0:03:00]} 6. Bg2 {[%clk 0:02:54.3]} 6... O-O {[%clk 0:03:00.7]} 7.
O-O {[%clk 0:02:54.9]} 7... h6 {[%clk 0:03:01.4]} 8. h3 {[%clk 0:02:49.5]} 8...
Bf5 {[%clk 0:03:01.2]} 9. d5 {[%clk 0:02:45.2]} 9... Nb4 {[%clk 0:02:47.6]} 10.
Ne1 {[%clk 0:02:45]} 10... a5 {[%clk 0:02:45.9]} 11. e4 {[%clk 0:02:45.1]} 11...
Bh7 {[%clk 0:02:40.9]} 12. Be3 {[%clk 0:02:27.9]} 12... Nd7 {[%clk 0:02:34]} 13.
a3 {[%clk 0:02:13.5]} 13... Na6 {[%clk 0:02:33.8]} 14. Nd3 {[%clk 0:02:07.7]}
14... f5 {[%clk 0:02:29.1]} 15. exf5 {[%clk 0:02:06.9]} 15... Bxf5 {[%clk
0:02:30]} 16. Ne4 {[%clk 0:02:07.4]} 16... Nf6 {[%clk 0:02:27.8]} 17. f3 {[%clk
0:02:00.5]} 17... c6 {[%clk 0:02:22.2]} 18. Ndf2 {[%clk 0:01:56.6]} 18... Nc7
{[%clk 0:02:11.5]} 19. Rc1 {[%clk 0:01:47.8]} 19... cxd5 {[%clk 0:02:02.9]} 20.
Nxf6+ {[%clk 0:01:47.9]} 20... Bxf6 {[%clk 0:02:03.7]} 21. cxd5 {[%clk
0:01:48.6]} 21... Nb5 {[%clk 0:01:48.2]} 22. Ne4 {[%clk 0:01:47.2]} 22... Bxe4
{[%clk 0:01:46.2]} 23. fxe4 {[%clk 0:01:47.3]} 23... Nd4 {[%clk 0:01:46.8]} 24.
h4 {[%clk 0:01:45]} 24... Qb6 {[%clk 0:01:41.2]} 25. Rf2 {[%clk 0:01:35.8]}
25... Rac8 {[%clk 0:01:26.1]} 26. Bh3 {[%clk 0:01:32.2]} 26... Rxc1 {[%clk
0:01:22.8]} 27. Qxc1 {[%clk 0:01:33.1]} 27... Qb3 {[%clk 0:01:07.2]} 28. Kg2
{[%clk 0:01:25.7]} 28... Qd3 {[%clk 0:01:06.5]} 29. Bxd4 {[%clk 0:00:41.5]}
29... Qxe4+ {[%clk 0:01:06.1]} 30. Kh2 {[%clk 0:00:41.9]} 30... exd4 {[%clk
0:01:06.6]} 31. Be6+ {[%clk 0:00:42.4]} 31... Kh8 {[%clk 0:01:06]} 32. Kh3
{[%clk 0:00:42.9]} 32... d3 {[%clk 0:00:55.4]} 33. Qc7 {[%clk 0:00:41.8]} 33...
Qh1+ {[%clk 0:00:47.3]} 34. Kg4 {[%clk 0:00:41]} 34... Qd1+ {[%clk 0:00:47.9]}
35. Kh3 {[%clk 0:00:39.2]} 35... d2 {[%clk 0:00:48.5]} 36. Qxd6 {[%clk
0:00:15.9]} 36... Qh1+ {[%clk 0:00:48.2]} 37. Rh2 {[%clk 0:00:16.3]} 37... Qf1+
{[%clk 0:00:48.9]} 38. Rg2 {[%clk 0:00:17]} 38... Rd8 {[%clk 0:00:48.2]} 0-1

[Event "Early-Titled-Tuesday-Blitz-September-05-2023"]
[Site "Chess.com"]
[Date "2023.09.05"]
[Round "10"]
[White "ExchangeAB"]
[Black "Karttunen"]
[Result "0-1"]
[WhiteElo "2427"]
[BlackElo "2578"]
[TimeControl "180+1"]
[EndTime "9:53:43 PDT"]
[Termination "Karttunen won by resignation"]

1. d4 {[%clk 0:03:00.9]} 1... Nf6 {[%clk 0:02:59.5]} 2. Nc3 {[%clk 0:03:00.5]}
2... d5 {[%clk 0:02:58.6]} 3. Bf4 {[%clk 0:03:00.4]} 3... e6 {[%clk 0:02:56.9]}
4. e3 {[%clk 0:02:59.9]} 4... Bb4 {[%clk 0:02:55.9]} 5. Bd3 {[%clk 0:02:59.9]}
5... c5 {[%clk 0:02:52.3]} 6. dxc5 {[%clk 0:02:59.7]} 6... Qa5 {[%clk
0:02:31.2]} 7. Ne2 {[%clk 0:02:58.7]} 7... Bxc5 {[%clk 0:02:21.6]} 8. O-O {[%clk
0:02:54.6]} 8... Nbd7 {[%clk 0:02:01.3]} 9. Nb5 {[%clk 0:02:31]} 9... e5 {[%clk
0:01:58.4]} 10. Bg3 {[%clk 0:02:25.5]} 10... a6 {[%clk 0:01:53.9]} 11. b4 {[%clk
0:02:22.7]} 11... Bxb4 {[%clk 0:01:51.2]} 12. a3 {[%clk 0:01:46.9]} 12... Be7
{[%clk 0:01:46.9]} 13. Bf5 {[%clk 0:00:55.8]} 13... Qxb5 {[%clk 0:01:39.8]} 14.
Rb1 {[%clk 0:00:48.7]} 14... Qc5 {[%clk 0:01:36.2]} 15. c4 {[%clk 0:00:45.7]}
15... dxc4 {[%clk 0:01:31.2]} 16. Nc3 {[%clk 0:00:43.7]} 16... O-O {[%clk
0:01:20.3]} 17. Qc2 {[%clk 0:00:43.8]} 17... b5 {[%clk 0:01:05.7]} 18. h4 {[%clk
0:00:43.7]} 18... h6 {[%clk 0:01:05]} 19. Ne4 {[%clk 0:00:32.5]} 19... Qc7
{[%clk 0:01:00.8]} 20. Rbd1 {[%clk 0:00:26.1]} 20... Bb7 {[%clk 0:00:53.7]} 21.
f3 {[%clk 0:00:23.1]} 21... Nc5 {[%clk 0:00:50.5]} 22. h5 {[%clk 0:00:20.4]}
22... Rad8 {[%clk 0:00:47.6]} 23. Bh2 {[%clk 0:00:20.2]} 23... Rxd1 {[%clk
0:00:45.5]} 24. Rxd1 {[%clk 0:00:20.6]} 24... Rd8 {[%clk 0:00:43.3]} 25. Rf1
{[%clk 0:00:21]} 25... Ncxe4 {[%clk 0:00:39.8]} 26. fxe4 {[%clk 0:00:21.9]}
26... Rd3 {[%clk 0:00:39.6]} 27. Qf2 {[%clk 0:00:21.2]} 27... Bc5 {[%clk
0:00:37.3]} 28. Kh1 {[%clk 0:00:20.7]} 28... Bxe3 {[%clk 0:00:36.7]} 29. Qh4
{[%clk 0:00:19.9]} 29... Bg5 {[%clk 0:00:36.2]} 30. Qf2 {[%clk 0:00:18.9]} 30...
Nxe4 {[%clk 0:00:31.2]} 31. Qa7 {[%clk 0:00:18.6]} 31... Nc5 {[%clk 0:00:25.6]}
32. Bxe5 {[%clk 0:00:16.9]} 32... Qxe5 {[%clk 0:00:23.1]} 0-1